Workbook

Sheet Superpesis
B1: Annika Jokinen | E1: 29.10.1994 Kuusankoski
B2: SUPERPESIS | E2: Runkosarja | I2: Kärkilyönnit (KL), pesänvälit | P2: Ylempi loppusarja | U2: Alempi loppusarja | Z2: Arvo-ottelut ja mitalit | AF2: Runkosarjan jälkeen
B3: Vuosi | C3: Sija | D3: Seura | E3: OTT | F3: KUN | G3: LÖI | H3: TOI | I3: KL | J3: 0 > 1 | K3: 1 > 2 | L3: 2 > 3 | M3: 3 > k | N3: KL-% | P3: OTT | Q3: KUN | R3: LÖI | S3: TOI | T3: KL | U3: OTT | V3: KUN | W3: LÖI | X3: TOI | Y3: KL | Z3: IL | AA3: LL | AB3: Halli | AC3: K | AD3: H | AE3: P
B4: 2010 | D4: KPL | F4: ykköspesis
B5: 2011 | D5: KuPu | F5: tyttöjen superpesis
B6: 2012 | D6: KuPu | F6: suomensarja
B7: 2013 | D7: KuPu | F7: suomensarja
B8: 2014 | D8: Kirittäret 2 | F8: ykköspesis
B9: 2014 | C9: 2. | D9: Kirittäret | E9: 18 | F9: 0 | G9: 2 | H9: 2 | I9: 27 | J9: 14 | K9: 7 | L9: 4 | M9: 2 | N9: 38.0 % | O9: =PRODUCT(I9/N9) -> 71.05263158 | P9: 6 | Q9: 0 | R9: 0 | S9: 0 | T9: 4 | AD9: 1 | AF9: play off
B10: 2015 | D10: Kirittäret 2 | F10: ykköspesis
B11: 2015 | C11: 2. | D11: Kirittäret | E11: 1 | F11: 0 | G11: 0 | H11: 0 | I11: 3 | J11: 0 | K11: 2 | L11: 1 | M11: 0 | N11: 42.9 % | O11: 7 | P11: 1 | Q11: 0 | R11: 0 | S11: 1 | T11: 3 | AD11: 1 | AF11: play off
B12: 2016 | C12: 10. | D12: ViU | E12: 22 | F12: 0 | G12: 2 | H12: 8 | I12: 55 | J12: 8 | K12: 26 | L12: 19 | M12: 2 | N12: 40.4 % | O12: 136
B13: Yhteensä | E13: =SUM(E4:E12) -> 41 | F13: 0 | G13: 4 | H13: 10 | I13: 85 | J13: 22 | K13: 35 | L13: 24 | M13: 4 | N13: =PRODUCT(I13/O13) -> 39.7 % | O13: =SUM(O4:O12) -> 214.0526316 | P13: 7 | Q13: 0 | R13: 0 | S13: 1 | T13: 7 | U13: 0 | V13: 0 | W13: 0 | X13: 0 | Y13: 0 | Z13: 0 | AA13: 0 | AB13: 0 | AC13: 0 | AD13: 2 | AE13: 0
B14: Pesispörssi | D14: =SUM(F13:H13)+((I13-F13-G13)/3)+(E13/3)+(Z13*25)+(AA13*25)+(AB13*10)+(AC13*25)+(AD13*20)+(AE13*15)-20 -> 74.7
B16: URA SUPERISSA | E16: OTT | F16: KUN | G16: LÖI | H16: TOI | I16: KL | K16: ka/L | L16: ka/T | M16: ka/KL | N16: K - % | P16: ENSIMMÄISET
B17: Runkosarja | E17: =PRODUCT(E13) -> 41 | F17: =PRODUCT(F13) -> 0 | G17: =PRODUCT(G13) -> 4 | H17: =PRODUCT(H13) -> 10 | I17: =PRODUCT(I13) -> 85 | K17: =PRODUCT((F17+G17)/E17) -> 0.10 | L17: =PRODUCT(H17/E17) -> 0.24 | M17: =PRODUCT(I17/E17) -> 2.07 | N17: =PRODUCT(N13) -> 39.7 % | O17: =PRODUCT(O13) -> 214.0526316 | P17: Ottelu | S17: 25.05. 2014 ViPa - Kirittäret 0-2 (0-9, 1-8) | AD17: 1. ottelu | AF17: 19 v 6 kk 26 pv
B18: Ylempi loppusarja | E18: =PRODUCT(P13) -> 7 | F18: =PRODUCT(Q13) -> 0 | G18: 0 | H18: 1 | I18: 7 | K18: =PRODUCT((F18+G18)/E18) -> 0.00 | L18: =PRODUCT(H18/E18) -> 0.14 | M18: =PRODUCT(I18/E18) -> 1.00 | N18: =PRODUCT(I18/O18) -> 17.5 % | O18: 40 | P18: Lyöty juoksu | S18: 01.06. 2014 Virkiä - Kirittäret 2-0 (4-0, 4-2) | AD18: 3. ottelu | AF18: 19 v 7 kk 3 pv
B19: Alempi loppusarja | O19: 0 | P19: Tuotu juoksu | S19: 25.05. 2014 ViPa - Kirittäret 0-2 (0-9, 1-8) | AD19: 1. ottelu | AF19: 19 v 6 kk 26 pv
B20: KAIKKI | E20: =SUM(E17:E19) -> 48 | F20: =SUM(F17:F19) -> 0 | G20: =SUM(G17:G19) -> 4 | H20: =SUM(H17:H19) -> 11 | I20: =SUM(I17:I19) -> 92 | K20: =PRODUCT((F20+G20)/E20) -> 0.08 | L20: =PRODUCT(H20/E20) -> 0.23 | M20: =PRODUCT(I20/E20) -> 1.92 | N20: =PRODUCT(I20/O20) -> 36.2 % | O20: =SUM(O17:O19) -> 254.0526316 | P20: Kunnari
B22: Seurat | D22: KyPe = Kymi-Pesis, Koria (1978), kasvattajaseura
D23: KPL = Kouvolan Pallonlyöjät (1931)
D24: KuPu = Kuuankosken Puhti (1910)
D25: Kirittäret = Jyväskylän Kirittäret (2004)

Sheet Arvo-ottelut
B1: ITÄ - LÄNSI - KORTTI
B2: Annika Jokinen | C2: 29.10.1994 Kuusankoski
B3: B-TYTÖT | C3: Itä - Länsi, tulos | D3: Joukkue | E3: Seura | G3: V | H3: T | I3: H | J3: Up. | K3: Lj. | L3: Palk. | M3: O | N3: K | O3: L | P3: T | Q3: KL | R3: 1 | S3: 2 | T3: 3 | U3: k | V3: KL-% | W3: Pelinjohtaja | X3: Yleisöä
B4: 21.07. 2012 Sotkamo | C4: 0-2 (2-8, 2-4) | D4: Itä | E4: KuPu | I4: 1 | J4: 2k | K4: 9 | M4: 1 | Q4: 3/6 | R4: 1/1 | S4: 2/4 | T4: 0/1 | V4: 50.0 % | W4: Marko Haverinen | X4: 1909
B5: 13.07. 2013 Hyvinkää | C5: 0-2 (0-1, 1-3) | D5: Itä | E5: KuPu | I5: 1 | J5: 2k | K5: 9 | L5: II p | M5: 1 | Q5: 2/4 | R5: 1/2 | S5: 1/1 | T5: 0/1 | V5: 50.0 % | W5: Iivo Parviainen | X5: 1013
B6: Yhteensä | I6: =SUM(I2:I5) -> 2 | M6: =SUM(M2:M5) -> 2 | Q6: 5/10 | R6: 2/3 | S6: 3/5 | T6: 0/2 | V6: 50.0 %
